Cogmind - Beta 9.4 @@@ ROGUE MODE // 2020.02.01 @ 04:09:36 Player: Destravous Result: Destroyed by P-80 Master with Gamma Rifle Performance ------------- Evolutions (8) 4000 Regions Visited (15) 3000 Robots Destroyed (39) 195 Value Destroyed (1213) 1213 Prototype IDs (17) 340 Alien Tech Used (0) 0 Bonus (4093) 4093 TOTAL SCORE: 12841 Bonus ------- Follower Combat Kills 145 Acquired SGEMP 2000 Met Sigix 2000 Friendly Fire -52 Cogmind --------- Core Integrity 0/1450 Matter 35/300 Energy 38/100 System Corruption 17% Temperature Cool (0) Movement Core (50) Location -2/Quarantine Parts ------- > --- POWER (3) -------- (None) > --- PROPULSION (6) --- (None) > --- UTILITY (12) ----- Experimental Optical Array Advanced Signal Interpreter Advanced Terrain Scan Processor System Shield Improved System Shield > --- WEAPON (2) ------- (None) > --- INVENTORY (4) ---- (None) Peak State ------------ > --- POWER ------------ Micro Fission Core Micro Fission Core > --- PROPULSION ------- Improved Cesium-ion Thruster Nuclear Pulse Array Nuclear Pulse Array > --- UTILITY ---------- Experimental Heat Sink Medium Storage Unit Medium Storage Unit Experimental Optical Array Advanced Signal Interpreter Long-range Terrain Scanner Advanced Terrain Scan Processor Makeshift Transmission Jammer Hacking Suite Advanced Hacking Suite Experimental Hacking Suite Improved System Shield > --- WEAPON ----------- Disintegrator > --- INVENTORY -------- Fusion Compressor Power Amplifier Improved Coolant Injector Improved Energy Well Advanced Weight Redist. System Advanced Particle Charger Stasis Canceller Makeshift System Restoration Module Tachyon Dispersion Ray Matter Neutralizer Proton Missile Launcher Advanced Remote Datajack [Rating: 127] Favorites ----------- Power Micro Nuclear Core Engine Improved Ion Engine Power Core Micro Nuclear Core Reactor Light Quantum Reactor Propulsion Gravmag System Leg Aluminum Leg Hover Unit Gravmag System Flight Unit Improved Cesium-ion Thruster Utility Medium Storage Unit Device Improved Sensor Array Storage Medium Storage Unit Processor Advanced Signal Interpreter Hackware Hacking Suite Protection Improved Propulsion Shielding Weapon Heavy Ion Cannon Energy Gun EM Pulse Gun Energy Cannon Heavy Ion Cannon Ballistic Gun Shotgun Launcher Grenade Launcher Special Weapon Improved Plasma Cutter Build | -11 -10 -9 -8 -7 -7 -7 -6 -6 -6 -5 -4 -3 -3 -2 -2 ------- Run | Scr Mat Mat Mat Fac Was Fac Fac Low Low Fac Fac Res Tes Res Qua Slots Evolved 16 | . . 2 2 2 . . 2 . . 2 2 2 . 2 . Power 2 | . . 1 . . . . . . . . . . . 1 . Propulsion 4 | . . . 1 . . . 1 . . . 1 . . 1 . Utility 10 | . . 1 1 2 . . 1 . . 2 1 2 . . . Weapon . | . . . . . . . . . . . . . . . . Parts Attached 185 | . 1 21 10 21 1 14 25 15 1 17 8 13 26 8 4 Power 19 | . . 3 1 4 . 1 2 . . 1 3 1 2 1 . Engine 7 | . . 3 1 3 . . . . . . . . . . . Core 11 | . . . . 1 . 1 2 . . 1 3 1 2 . . Reactor 1 | . . . . . . . . . . . . . . 1 . Propulsion 26 | . . 1 3 6 . 2 5 1 . 3 1 . 2 1 1 Treads . | . . . . . . . . . . . . . . . . Leg 5 | . . 1 2 2 . . . . . . . . . . . Wheel . | . . . . . . . . . . . . . . . . Hover 8 | . . . . 4 . 2 1 1 . . . . . . . Flight 13 | . . . 1 . . . 4 . . 3 1 . 2 1 1 Utility 83 | . . 10 4 7 . 5 10 14 1 9 4 5 9 4 1 Device 64 | . . 6 2 7 . 4 7 13 1 5 4 3 8 3 1 Storage 4 | . . 1 . . . 1 . . . 2 . . . . . Processor 6 | . . 1 2 . . . 1 1 . 1 . . . . . Hackware 5 | . . . . . . . 1 . . . . 2 1 1 . Protection 4 | . . 2 . . . . 1 . . 1 . . . . . Artifact . | . . . . . . . . . . . . . . . . Weapon 57 | . 1 7 2 4 1 6 8 . . 4 . 7 13 2 2 Energy Gun 18 | . . 3 . . . 1 6 . . 1 . 2 2 1 2 Energy Cannon 23 | . . 2 2 4 1 2 1 . . 1 . 1 9 . . Ballistic Gun 2 | . . 2 . . . . . . . . . . . . . Ballistic Cannon . | . . . . . . . . . . . . . . . . Launcher 6 | . 1 . . . . 3 1 . . . . 1 . . . Special Weapon 8 | . . . . . . . . . . 2 . 3 2 1 . Impact Weapon . | . . . . . . . . . . . . . . . . Slashing Weapon . | . . . . . . . . . . . . . . . . Piercing Weapon . | . . . . . . . . . . . . . . . . Special Melee Weapon . | . . . . . . . . . . . . . . . . Unidentified Prototypes 16 | . . 1 1 . . 3 2 . . 2 . . 6 1 . Parts Lost 39 | . . 4 . 2 . 2 2 . . 2 1 4 14 5 3 Power 6 | . . 1 . . . . . . . . 1 1 2 1 . Propulsion 11 | . . . . 1 . 1 2 . . . . . 5 1 1 Utility 12 | . . . . . . 1 . . . . . 2 6 2 1 Weapon 10 | . . 3 . 1 . . . . . 2 . 1 1 1 1 Highest Loss Streak 10 | . . 3 . 1 . 2 1 . . 2 1 2 10 3 3 Average Slot Usage (%) 84 | . 85 86 95 95 91 93 94 86 86 86 84 82 76 30 27 Engine 5 | . 14 15 16 10 7 7 5 . . . . . . . . Core 6 | . . . . 2 . 4 7 13 13 11 10 9 7 . . Leg 6 | . 28 21 25 8 . . . . . . . . . . . Hover 5 | . . . . 14 23 23 9 5 6 2 . . . . . Flight 8 | . . . . . . . 16 20 20 15 15 14 11 2 3 Device 11 | . . 8 14 21 23 19 16 6 6 14 15 14 14 2 2 Storage 9 | . 14 11 9 7 7 9 13 13 13 11 10 9 6 . . Processor 14 | . . 10 12 15 15 15 13 20 20 17 15 14 14 13 13 Hackware 4 | . . . . . . . 2 6 6 5 5 11 16 8 8 Energy Gun 2 | . 17 8 . . . 2 6 . . . . . 1 . . Energy Cannon 5 | . . 7 17 14 14 6 1 . . . 5 1 1 . . Naked Turns . | . . . . . . . . . . . . . . . . Heaviest Build 46 | 13 14 25 41 44 33 38 40 34 29 44 46 46 45 15 5 Greatest Support 57 | 20 20 20 35 35 33 42 53 30 30 49 48 57 57 16 27 Greatest Overweight (x) 2 | . . 2 2 2 . . 1 1 . 1 . . 2 . . Average Overweight (x) . | . . . 1 . . . . . . . . . . . . Largest Inventory Capacity 12 | . 6 8 8 8 8 12 12 12 12 12 12 12 12 4 4 Average Capacity 9 | . 6 7 8 8 8 9 12 12 12 11 12 12 10 4 4 Most Carried 12 | . 6 8 8 8 8 12 12 12 12 12 12 12 12 4 4 Average Carried 9 | . 5 7 7 7 7 8 11 11 12 10 11 9 9 3 2 Final Capacity 12 | 6 6 8 8 8 8 12 12 12 12 12 12 12 4 4 4 Final Carried 12 | 6 6 8 8 7 7 12 12 12 12 12 12 9 3 4 . Class Distribution -------------------- 47% | Mutant 26% | Scout 9% | Skirmisher 9% | Hacker-Scout 6% | Hacker-Mutant Dominant Class ---------------- Mutant | -10/Materials Mutant | -9/Materials Mutant | -8/Materials Skirmisher | -7/Factory Scout | -7/Waste Scout | -7/Factory Scout | -6/Factory Mutant | -6/Lower Caves Mutant | -6/Lower Caves Mutant | -5/Factory Scout | -4/Factory Hacker-Scout | -3/Research Hacker-Scout | -3/Testing Hacker-Mutant | -2/Research Hacker-Mutant | -2/Quarantine Resources | -11 -10 -9 -8 -7 -7 -7 -6 -6 -6 -5 -4 -3 -3 -2 -2 ----------- Run | Scr Mat Mat Mat Fac Was Fac Fac Low Low Fac Fac Res Tes Res Qua Matter Collected 1785 | 192 48 183 16 228 . 249 119 276 30 . 224 116 59 16 29 Remotely 249 | . . . . . . 249 . . . . . . . . . Salvage Created 1450 | . 124 367 16 231 . 349 59 . . 60 90 116 38 . . Parts 89 | . 18 18 1 17 . 18 3 . . 8 2 3 1 . . Haulers Intercepted 2 | . . . . . . 1 . . . . . 1 . . . Recyclers Shooed . | . . . . . . . . . . . . . . . . Parts Field Recycled . | . . . . . . . . . . . . . . . . Retrieved Matter . | . . . . . . . . . . . . . . . . Parts Self-Destructed . | . . . . . . . . . . . . . . . . Prevented 1 | . . . . . . . . 1 . . . . . . . Kills | -11 -10 -9 -8 -7 -7 -7 -6 -6 -6 -5 -4 -3 -3 -2 -2 ------- Run | Scr Mat Mat Mat Fac Was Fac Fac Low Low Fac Fac Res Tes Res Qua Combat Hostiles Destroyed 27 | . 4 8 . 3 . 7 2 . . 1 1 . 1 . . Guns 6 | . 1 3 . . . . 2 . . . . . . . . Cannons 15 | . . 5 . 3 . 4 . . . 1 1 . 1 . . AOE 6 | . 3 . . . . 3 . . . . . . . . . Classes Destroyed 8 | . 4 2 . . . 1 . . . 1 . . . . . Hauler 2 | . . . . . . 1 . . . . . 1 . . . Recycler 1 | . . 1 . . . . . . . . . . . . . Operator 3 | . 1 . 1 . . . 1 . . . . . . . . Watcher 6 | . 2 1 . 3 . . . . . . . . . . . Swarmer 13 | . 3 4 . . . 4 2 . . . . . . . . Grunt 6 | . 1 2 . 1 . 2 . . . . . . . . . Sentry 6 | . . 2 . 2 . 1 . . . . 1 . . . . Programmer 2 | . . . . . . . . . . 1 . . 1 . . Best Kill Streak 5 | . 4 4 1 5 . 3 2 . . 1 1 1 1 . . Combat Bots Only 4 | . 3 4 . 3 . 3 2 . . 1 1 . 1 . . Max Kills in Single Turn 4 | . 4 1 1 1 . 2 1 . . 1 1 1 1 . . Gunslinging . | . . . . . . . . . . . . . . . . Exploded 2 | . 2 . . . . 2 . . . . . . . . . Melee . | . . . . . . . . . . . . . . . . Uniques/NPCs Destroyed . | . . . . . . . . . . . . . . . . Combat | -11 -10 -9 -8 -7 -7 -7 -6 -6 -6 -5 -4 -3 -3 -2 -2 -------- Run | Scr Mat Mat Mat Fac Was Fac Fac Low Low Fac Fac Res Tes Res Qua Damage Taken 6356 | . 63 254 . 607 . 124 114 . . 305 135 536 2219 1116 883 Core 2991 | . . 14 . 136 . . 7 . . 44 48 43 1243 816 640 Absorbed by Shields 48 | . . . . . . . . . . . 48 . . . . Core Remaining (%) 85 | 100 100 96 100 . . 80 . . 99 95 95 . 1 . . Volleys Fired 147 | . 7 22 1 21 . 23 16 . . 7 6 18 23 2 1 Largest 2 | . 2 2 2 2 . 2 2 . . 2 1 1 2 1 1 Hottest 199 | . 70 116 130 145 . 135 135 . . 100 90 90 199 20 88 Shots Fired 213 | . 12 44 2 38 . 26 22 . . 10 6 18 32 2 1 Gun 64 | . 7 24 . . . 2 19 . . . . 1 10 . 1 Cannon 118 | . . 20 2 38 . 17 3 . . 3 6 10 19 . . Launcher 13 | . 5 . . . . 7 . . . . . 1 . . . Special 18 | . . . . . . . . . . 7 . 6 3 2 . Kinetic . | . . . . . . . . . . . . . . . . Thermal 178 | . . 39 2 38 . 19 22 . . 10 6 11 28 2 1 Explosive 5 | . 5 . . . . . . . . . . . . . . Electromagnetic 21 | . 7 5 . . . 7 . . . . . 1 1 . . Robot Hit Streak 18 | . 1 13 . 9 . 6 4 . . 6 4 7 18 . . Robot Miss Streak 8 | . 4 4 2 5 . 8 4 . . 2 1 3 2 . . Penetration Max . | . . . . . . . . . . . . . . . . Secondary Targets . | . . . . . . . . . . . . . . . . Shots Hit Robots 111 | . 3 24 . 20 . 9 13 . . 7 5 14 16 . . Core Hits 63 | . 8 12 1 10 . 10 8 . . 3 3 4 2 . 2 Critical Hits 1 | . . . . . . . . . . 1 . . . . . Critical Kills 1 | . . . . . . . . . . 1 . . . . . Critical Parts Destroyed . | . . . . . . . . . . . . . . . . Melee Attacks . | . . . . . . . . . . . . . . . . Impact . | . . . . . . . . . . . . . . . . Slashing . | . . . . . . . . . . . . . . . . Piercing . | . . . . . . . . . . . . . . . . Sneak Attacks . | . . . . . . . . . . . . . . . . Combat Hostiles . | . . . . . . . . . . . . . . . . Follow-up Attacks . | . . . . . . . . . . . . . . . . Damage Inflicted 3207 | . 389 436 27 546 . 488 214 . . 201 152 288 440 17 9 Guns 745 | . 66 219 . . . 39 214 . . . . 31 176 . . Cannons 1776 | . . 211 27 541 . 231 . . . 112 152 238 264 . . Explosions 560 | . 323 . . . . 218 . . . . . 19 . . . Melee . | . . . . . . . . . . . . . . . . Ramming 37 | . . 6 . 5 . . . . . . . . . 17 9 Kinetic . | . . . . . . . . . . . . . . . . Thermal 2553 | . . 399 27 541 . 313 214 . . 201 152 269 437 . . Explosive 323 | . 323 . . . . . . . . . . . . . . Electromagnetic 294 | . 66 31 . . . 175 . . . . . 19 3 . . Impact . | . . . . . . . . . . . . . . . . Slashing . | . . . . . . . . . . . . . . . . Piercing . | . . . . . . . . . . . . . . . . Highest Corruption 17 | . . . . . 15 16 3 3 . 1 . 1 3 7 17 Average Corruption 6 | . . . . . 5 15 3 2 . 1 . 1 1 4 8 Corruption Purged 3 | . . . . . . . . 3 . . . . . . . Effects 54 | . . . . . 2 35 . 11 . . . . 2 1 3 Message Errors 15 | . . . . . . 8 . 5 . . . . 2 . . Matter Fused 7 | . . . . . 1 4 . 1 . . . . . . 1 Heat Flow Errors 1 | . . . . . . . . 1 . . . . . . . Energy Discharges 7 | . . . . . . 5 . 1 . . . . . . 1 Parts Rejected 2 | . . . . . 1 1 . . . . . . . . . Data Loss (minor) 7 | . . . . . . 2 . 3 . . . . . 1 1 Misfires 1 | . . . . . . 1 . . . . . . . . . Misdirections 8 | . . . . . . 8 . . . . . . . . . Targeting Errors 5 | . . . . . . 5 . . . . . . . . . Weapon Failures 1 | . . . . . . 1 . . . . . . . . . Overload Shots . | . . . . . . . . . . . . . . . . Overflow Damage 26 | . 1 . . 19 . . . . . . . 6 . . . Projectiles 25 | . . . . 19 . . . . . . . 6 . . . Explosions 1 | . 1 . . . . . . . . . . . . . . Melee . | . . . . . . . . . . . . . . . . Knockbacks . | . . . . . . . . . . . . . . . . Impact . | . . . . . . . . . . . . . . . . Kinetic . | . . . . . . . . . . . . . . . . Secondary . | . . . . . . . . . . . . . . . . Self-Inflicted Damage 48 | . 32 2 . 2 . . . . . . . . . 8 4 Shots 1 | . 1 . . . . . . . . . . . . . . Rammed 7 | . . 2 . 1 . . . . . . . . . 1 3 Targets Rammed 7 | . . 2 . 1 . . . . . . . . . 1 3 Kicked . | . . . . . . . . . . . . . . . . Crushed . | . . . . . . . . . . . . . . . . Highest Temperature 282 | . 24 195 72 199 . 81 140 282 . 12 218 180 192 . . Average Temperature 68 | . 10 77 38 67 . 23 58 174 . 7 111 72 70 . . Received Heat Transfer 540 | . 12 63 . 198 . 9 9 . . 27 24 78 30 54 36 Effects 1 | . . . . . . . . 1 . . . . . . . Energy Bleed 1 | . . . . . . . . 1 . . . . . . . Siege Activations . | . . . . . . . . . . . . . . . . Robots Corrupted . | . . . . . . . . . . . . . . . . Combat Hostiles . | . . . . . . . . . . . . . . . . Parts Fried . | . . . . . . . . . . . . . . . . Impact Corruptions . | . . . . . . . . . . . . . . . . Robots Melted . | . . . . . . . . . . . . . . . . Combat Hostiles . | . . . . . . . . . . . . . . . . Parts Melted 9 | . . 2 . 2 . 3 2 . . . . . . . . Heat Transferred 4197 | . . 925 37 818 . 574 461 . . 382 185 371 444 . . Parts Sabotaged . | . . . . . . . . . . . . . . . . Parts Stolen . | . . . . . . . . . . . . . . . . Parts Stripped . | . . . . . . . . . . . . . . . . Power Chain Reactions 1 | . . . . . . 1 . . . . . . . . . Missiles Intercepted . | . . . . . . . . . . . . . . . . Alert | -11 -10 -9 -8 -7 -7 -7 -6 -6 -6 -5 -4 -3 -3 -2 -2 ------- Run | Scr Mat Mat Mat Fac Was Fac Fac Low Low Fac Fac Res Tes Res Qua Peak Influence 293 | . 134 293 29 188 26 221 211 . . 45 59 154 278 161 172 Average Influence 73 | . 81 127 22 69 26 78 61 . . 2 19 50 196 52 139 Maximum Alert Level 1 | . . 1 . 1 . 1 1 . . . . . 1 . . Low Security (%) 91 | . 100 74 100 99 100 94 99 . . 100 100 100 53 100 100 Level 1 8 | . . 25 . . . 5 . . . . . . 46 . . Level 2 . | . . . . . . . . . . . . . . . . Level 3 . | . . . . . . . . . . . . . . . . Level 4 . | . . . . . . . . . . . . . . . . Level 5 . | . . . . . . . . . . . . . . . . High Security . | . . . . . . . . . . . . . . . . Max Security . | . . . . . . . . . . . . . . . . Squads Dispatched 24 | . 3 . . 2 . 2 7 . . 1 1 3 2 1 2 Investigation 8 | . 2 . . 1 . 1 2 . . . . 1 . 1 . Extermination 3 | . . . . . . . 1 . . 1 1 . . . . Reinforcement 10 | . 1 . . 1 . 1 1 . . . . 2 2 . 2 Assault . | . . . . . . . . . . . . . . . . Garrison 3 | . . . . . . . 3 . . . . . . . . Intercept . | . . . . . . . . . . . . . . . . Construction Impeded 1 | . . . . . . 1 . . . . . . . . . Haulers Reinforced . | . . . . . . . . . . . . . . . . Stealth | -11 -10 -9 -8 -7 -7 -7 -6 -6 -6 -5 -4 -3 -3 -2 -2 --------- Run | Scr Mat Mat Mat Fac Was Fac Fac Low Low Fac Fac Res Tes Res Qua Distress Signals 3 | . . 1 . . . . . . . . . . . 2 . Communications Jammed 4 | . . . . . . . . . . . . . 4 . . Distress Signals 4 | . . . . . . . . . . . . . 4 . . Times Spotted 156 | . 10 13 2 13 5 12 8 1 3 4 2 14 31 29 9 Peak Tracking Total 20 | . 4 7 1 5 5 4 4 1 3 4 1 8 20 16 5 Tactical Retreats 17 | . 1 2 . 2 . 2 2 . . 1 . 2 2 2 1 Traps | -11 -10 -9 -8 -7 -7 -7 -6 -6 -6 -5 -4 -3 -3 -2 -2 ------- Run | Scr Mat Mat Mat Fac Was Fac Fac Low Low Fac Fac Res Tes Res Qua Traps Triggered 15 | . 2 1 . 4 . 3 . . . . 1 . . 4 . Indirectly 1 | . . . . . . 1 . . . . . . . . . Trap Hack Attempts . | . . . . . . . . . . . . . . . . Triggered . | . . . . . . . . . . . . . . . . Disarmed . | . . . . . . . . . . . . . . . . Reprogrammed . | . . . . . . . . . . . . . . . . Reused . | . . . . . . . . . . . . . . . . Traps Extracted . | . . . . . . . . . . . . . . . . Installed . | . . . . . . . . . . . . . . . . Triggered 1 | . . . . . . . . 1 . . . . . . . Machines | -11 -10 -9 -8 -7 -7 -7 -6 -6 -6 -5 -4 -3 -3 -2 -2 ---------- Run | Scr Mat Mat Mat Fac Was Fac Fac Low Low Fac Fac Res Tes Res Qua Machines Disabled 8 | . 1 . . 2 . 1 . . . . . 1 3 . . Max in Single Turn 1 | . 1 . . 1 . 1 . . . . . 1 1 . . Garrison Access 3 | . . . . . . . . . . 1 . . 1 1 . Machines Sabotaged . | . . . . . . . . . . . . . . . . Garrisons Compromised . | . . . . . . . . . . . . . . . . Overloaded Fab Kills . | . . . . . . . . . . . . . . . . Fab Network Shutdowns . | . . . . . . . . . . . . . . . . Hacking | -11 -10 -9 -8 -7 -7 -7 -6 -6 -6 -5 -4 -3 -3 -2 -2 --------- Run | Scr Mat Mat Mat Fac Was Fac Fac Low Low Fac Fac Res Tes Res Qua Machines Accessed 47 | . 2 . 4 2 . 9 3 . . 5 4 4 7 3 4 Terminals 31 | . 2 . 2 1 . 6 1 . . 2 4 3 4 2 4 Fabricators 2 | . . . . 1 . . . . . . . . 1 . . Repair Stations 1 | . . . . . . . . . . . . . 1 . . Recycling Units 4 | . . . 1 . . 2 1 . . . . . . . . Scanalyzers 5 | . . . 1 . . 1 1 . . 2 . . . . . Garrison Access 4 | . . . . . . . . . . 1 . 1 1 1 . Total Hacks 112 | . 6 . 11 4 . 16 8 . . 13 6 12 17 10 9 Successful 49 | . 2 . 7 2 . 4 3 . . 9 2 3 10 5 2 Failed 63 | . 4 . 4 2 . 12 5 . . 4 4 9 7 5 7 Catastrophic 12 | . 1 . . 1 . 4 . . . 1 1 1 . . 3 Database Lockouts . | . . . . . . . . . . . . . . . . Manual 38 | . 6 1 2 2 . 3 . . . 2 4 4 4 6 4 Terminals 72 | . 6 . 5 3 . 10 3 . . 4 6 9 10 7 9 Fabricators 4 | . . . . 1 . . . . . . . . 3 . . Repair Stations 1 | . . . . . . . . . . . . . 1 . . Recycling Units 8 | . . . 1 . . 5 2 . . . . . . . . Scanalyzers 16 | . . . 5 . . 1 3 . . 7 . . . . . Garrison Access 11 | . . . . . . . . . . 2 . 3 3 3 . Terminal Hacks 27 | . 2 . 3 1 . 3 1 . . 1 2 3 5 4 2 Part Schematic 2 | . . . . . . . . . . . . . 2 . . Open Door 1 | . . . . . . . . . . . . . . . 1 Level Access Points 2 | . . . . . . 1 . . . . . . . 1 . Branch Access Points 4 | . 1 . 1 . . . . . . . . 1 . 1 . Fabricator Index 1 | . . . . . . . . . . . 1 . . . . Repair Station Index 1 | . . . . . . . . . . . . . 1 . . Alert Level 1 | . . . 1 . . . . . . . . . . . . Unreport Threat 4 | . . . . . . 1 1 . . . . 1 1 . . Recall Investigation 3 | . . . . . . . . . . 1 . . . 1 1 Recall Extermination 1 | . . . . . . . . . . . . 1 . . . Registered Prototypes 1 | . . . . . . . . . . . . . 1 . . Zone Layout 6 | . 1 . 1 1 . 1 . . . . 1 . . 1 . Fabricator Hacks 4 | . . . . 1 . . . . . . . . 3 . . Load Schematic 1 | . . . . . . . . . . . . . 1 . . Build 3 | . . . . 1 . . . . . . . . 2 . . Repair Station Hacks 1 | . . . . . . . . . . . . . 1 . . Refit 1 | . . . . . . . . . . . . . 1 . . Recycling Unit Hacks 2 | . . . 1 . . 1 . . . . . . . . . Report Inventory 2 | . . . 1 . . 1 . . . . . . . . . Scanalyzer 12 | . . . 3 . . . 2 . . 7 . . . . . Insert Component 6 | . . . 2 . . . 1 . . 3 . . . . . Analyze 6 | . . . 1 . . . 1 . . 4 . . . . . Garrison Access Hacks 3 | . . . . . . . . . . 1 . . 1 1 . Seal Access 3 | . . . . . . . . . . 1 . . 1 1 . Unauthorized Hacks . | . . . . . . . . . . . . . . . . Terminals . | . . . . . . . . . . . . . . . . Fabricators . | . . . . . . . . . . . . . . . . Repair Stations . | . . . . . . . . . . . . . . . . Recycling Units . | . . . . . . . . . . . . . . . . Scanalyzers . | . . . . . . . . . . . . . . . . Garrison Access . | . . . . . . . . . . . . . . . . Data Cores Recovered 1 | . . . 1 . . . . . . . . . . . . Used . | . . . . . . . . . . . . . . . . Hacking Detections 40 | . 1 . 3 1 . 9 3 . . 4 4 4 5 3 3 Full Trace Events 5 | . . . 1 1 . . 2 . . . . 1 . . . Feedback Events 1 | . . . . . . . . . . . . 1 . . . Corruption 1 | . . . . . . . . . . . . 1 . . . Feedback Blocked . | . . . . . . . . . . . . . . . . Robot Schematics Acquired . | . . . . . . . . . . . . . . . . Robots Built . | . . . . . . . . . . . . . . . . Matter . | . . . . . . . . . . . . . . . . Time . | . . . . . . . . . . . . . . . . Total Robot Build Rating . | . . . . . . . . . . . . . . . . Part Schematics Acquired 7 | . . . 1 . . . 1 . . 3 . . 2 . . Parts Built 6 | . . . . 2 . . . . . . . . 4 . . Matter 592 | . . . . 168 . . . . . . . . 424 . . Time 112 | . . . . 42 . . . . . . . . 70 . . Total Part Build Rating 32 | . . . . 8 . . . . . . . . 24 . . Parts Repaired . | . . . . . . . . . . . . . . . . Time . | . . . . . . . . . . . . . . . . Parts Recycled . | . . . . . . . . . . . . . . . . Recycled Matter . | . . . . . . . . . . . . . . . . Retrieved Matter . | . . . . . . . . . . . . . . . . Retrieved Components . | . . . . . . . . . . . . . . . . Parts Scanalyzed 5 | . . . 1 . . . 1 . . 3 . . . . . Part Schematics Acquired 5 | . . . 1 . . . 1 . . 3 . . . . . Parts Damaged . | . . . . . . . . . . . . . . . . Bothacking | -11 -10 -9 -8 -7 -7 -7 -6 -6 -6 -5 -4 -3 -3 -2 -2 ------------ Run | Scr Mat Mat Mat Fac Was Fac Fac Low Low Fac Fac Res Tes Res Qua Used RIF Installer . | . . . . . . . . . . . . . . . . Robots Hacked 3 | . . . . . . . . . . . . 1 2 . . Non-combat 2 | . . . . . . . . . . . . 1 1 . . Combat 1 | . . . . . . . . . . . . . 1 . . Robot Hacks Applied 6 | . . . . . . . . . . . . 3 3 . . parse_system 2 | . . . . . . . . . . . . 1 1 . . no_distress 1 | . . . . . . . . . . . . 1 . . . find_fabricator 1 | . . . . . . . . . . . . . 1 . . check_alert 1 | . . . . . . . . . . . . 1 . . . find_scanalyzer 1 | . . . . . . . . . . . . . 1 . . Relay Couplers Released . | . . . . . . . . . . . . . . . . Robots Rewired . | . . . . . . . . . . . . . . . . Allies Hacked . | . . . . . . . . . . . . . . . . Hacks Repelled . | . . . . . . . . . . . . . . . . Allies | -11 -10 -9 -8 -7 -7 -7 -6 -6 -6 -5 -4 -3 -3 -2 -2 -------- Run | Scr Mat Mat Mat Fac Was Fac Fac Low Low Fac Fac Res Tes Res Qua Total Allies 3 | . . . . . . 3 . . . . . . . . . Largest Group 3 | . . . . . . 3 1 . . . . . . . . Highest-Rated Group 93 | . . . . . . 93 31 . . . . . . . . Highest-Rated Ally 31 | . . . . . . 31 31 . . . . . . . . Total Orders . | . . . . . . . . . . . . . . . . Ally Attacks 33 | . . . . . . 29 4 . . . . . . . . Total Damage 589 | . . . . . . 525 64 . . . . . . . . Kills 5 | . . . . . . 3 2 . . . . . . . . Allies Corrupted . | . . . . . . . . . . . . . . . . Allies Melted . | . . . . . . . . . . . . . . . . Intel | -11 -10 -9 -8 -7 -7 -7 -6 -6 -6 -5 -4 -3 -3 -2 -2 ------- Run | Scr Mat Mat Mat Fac Was Fac Fac Low Low Fac Fac Res Tes Res Qua Robot Analysis Total . | . . . . . . . . . . . . . . . . Derelict Logs Recovered . | . . . . . . . . . . . . . . . . Drone Launches . | . . . . . . . . . . . . . . . . Drone Recoveries . | . . . . . . . . . . . . . . . . Exploration | -11 -10 -9 -8 -7 -7 -7 -6 -6 -6 -5 -4 -3 -3 -2 -2 ------------- Run | Scr Mat Mat Mat Fac Was Fac Fac Low Low Fac Fac Res Tes Res Qua Turns Passed 5431 | . 231 476 503 455 122 540 297 1143 87 438 254 149 415 204 117 Spaces Moved 5140 | 1 171 273 305 307 220 724 422 291 61 409 247 297 770 424 218 Core 159 | . . . . . . . . . . . . . 21 121 17 Treads . | . . . . . . . . . . . . . . . . Legs 851 | 1 171 273 305 101 . . . . . . . . . . . Wheels . | . . . . . . . . . . . . . . . . Hover 1230 | . . . . 206 220 724 80 . . . . . . . . Flight 2900 | . . . . . . . 342 291 61 409 247 297 749 303 201 Fastest Speed 29 | 120 120 120 150 52 52 48 29 32 32 32 32 32 32 35 40 Average Speed 61 | 120 120 126 150 103 52 49 34 92 32 52 32 32 34 39 40 Slowest Speed 180 | 120 120 180 180 180 52 52 107 107 32 107 32 32 165 50 50 Overloaded Moves . | . . . . . . . . . . . . . . . . Propulsion Burnouts . | . . . . . . . . . . . . . . . . Robots Hopped 35 | . . . . . . . . . . 4 . . 12 17 2 Cave-ins Triggered . | . . . . . . . . . . . . . . . . Exploration Rate (%) 30 | 1 42 32 22 13 98 21 14 51 13 14 9 11 88 26 33 Regions Visited 15 Branch Regions 4 Pre-discovered Areas . | . . . . . . . . . . . . . . . . Known Exits Taken 11 | . . 1 1 . . 1 1 1 1 1 1 1 1 1 . Unknown Exits Taken 2 | 1 1 . . . . . . . . . . . . . . Scrap Searched 8 | . . . . . . . . 7 1 . . . . . . Spaces Dug 9 | . . . . . . . . . . . . . 9 . . Terrain Destroyed 58 | . 40 . 1 1 . 4 . . . . 1 1 10 . . Melee . | . . . . . . . . . . . . . . . . Projectile 14 | . . . 1 1 . . . . . . 1 1 10 . . AOE 44 | . 40 . . . . 4 . . . . . . . . . Actions | -11 -10 -9 -8 -7 -7 -7 -6 -6 -6 -5 -4 -3 -3 -2 -2 --------- Run | Scr Mat Mat Mat Fac Was Fac Fac Low Low Fac Fac Res Tes Res Qua Total 7169 | . 185 352 349 409 227 880 550 1158 127 617 417 336 881 438 243 Wait 1510 | . 3 20 16 36 6 93 62 846 66 158 137 3 36 11 17 Move 5061 | . 170 272 304 307 219 723 421 290 60 400 246 296 746 393 214 Hop 31 | . . . . . . . . . . 4 . . 11 14 2 Pick Up 82 | . 2 8 8 8 1 14 9 3 . 14 5 2 7 1 . Fast Attach 51 | . . 11 5 7 . 4 3 . . 4 . . 9 7 1 Attach 67 | . . 2 1 11 1 5 9 1 . 9 5 9 10 1 3 Detach 42 | . . 1 . 6 . 3 7 1 . 3 2 4 12 2 1 Swap 68 | . 1 8 4 3 . 6 13 14 1 4 3 4 7 . . Drop 90 | . 2 6 10 9 . 9 10 3 . 14 4 . 20 2 1 Fire 147 | . 7 22 1 21 . 23 16 . . 7 6 18 23 2 1 Melee . | . . . . . . . . . . . . . . . . Ram 4 | . . . . 1 . . . . . . . . . . 3 Kick 2 | . . 2 . . . . . . . . . . . . . Crush . | . . . . . . . . . . . . . . . . Escape Stasis 14 | . . . . . . . . . . . 9 . . 5 . Rewire . | . . . . . . . . . . . . . . . . Trap . | . . . . . . . . . . . . . . . . Miscellaneous . | . . . . . . . . . . . . . . . . Route ------- -11/Scrapyard -10/Materials (discovered 2 exits: *Mat / Min) -9/Materials -8/Materials -7/Factory -7/Waste -7/Factory (discovered 4 exits: *Fac x4) -6/Factory -6/Lower Caves -6/Lower Caves -5/Factory -4/Factory (discovered 2 exits: *Res / [*Upp]) -3/Research (discovered 3 exits: Arm / *Tes x2) -3/Testing -2/Research (discovered 5 exits: Acc x3 / *Qua x2) -2/Quarantine History --------- Turn | Location | Event 1 | -11/Scrapyard | Discovered new exit (range 0) 1 | -11/Scrapyard | Entered Materials 191 | -10/Materials | Discovered new exit (range 16) 221 | -10/Materials | Identified exit to Mines 232 | -10/Materials | Entered another Materials area 232 | -9/Materials | Evolved 2 slots: Power x1, Utility x1 332 | -9/Materials | Build established: Mutant 656 | -9/Materials | Lost 3 parts (1p2w) 688 | -9/Materials | Discovered new exit (range 13) 707 | -9/Materials | Identified exit to Materials 708 | -9/Materials | Entered another Materials area 708 | -8/Materials | Evolved 2 slots: Propulsion x1, Utility x1 1105 | -8/Materials | Discovered new exit (range 9) 1210 | -8/Materials | Identified exit to Factory 1211 | -8/Materials | Entered Factory 1211 | -7/Factory | Evolved 2 slots: Utility x2 1339 | -7/Factory | Build established: Skirmisher 1514 | -7/Factory | Fabricated Plasma Cannon? 1666 | -7/Factory | Sucked down chute 1666 | -7/Factory | Entered Waste 1674 | -7/Waste | Spotted C-40 Crusher 1676 | -7/Waste | Spotted C-40 Crusher 1680 | -7/Waste | Spotted C-40 Crusher 1680 | -7/Waste | Spotted C-40 Crusher 1681 | -7/Waste | EMP discharged 1690 | -7/Waste | Spotted C-40 Crusher 1690 | -7/Waste | Spotted C-40 Crusher 1781 | -7/Waste | EMP discharged 1781 | -7/Waste | System corruption reached 10% 1782 | -7/Waste | Discovered new exit (range 12) 1787 | -7/Waste | Identified exit to Factory 1788 | -7/Waste | Entered Factory 2007 | -7/Factory | Allied Derelicts emerged from ambush trap array 2068 | -7/Factory | Identified exit to Factory 2230 | -7/Factory | Build established: Scout 2328 | -7/Factory | Entered another Factory area 2328 | -6/Factory | Accompanied by 1 ally 2328 | -6/Factory | Evolved 2 slots: Propulsion x1, Utility x1 2413 | -6/Factory | Garrison activated, responded to threat 2532 | -6/Factory | Found Prototype Processor 2533 | -6/Factory | Identified Exp. Targeting Computer 2618 | -6/Factory | Discovered new exit (range 6) 2624 | -6/Factory | Identified exit to Lower Caves 2625 | -6/Factory | Entered Lower Caves 2832 | -6/Lower Caves | Build established: Mutant 3132 | -6/Lower Caves | Encountered a Warlord checkpoint 3585 | -6/Lower Caves | Discovered new exit (range 9) 3764 | -6/Lower Caves | Attracted the attention of an 0b10 checkpoint 3766 | -6/Lower Caves | Identified exit to Lower Caves 3768 | -6/Lower Caves | Entered another Lower Caves area 3772 | -6/Lower Caves | Discovered new exit (range 19) 3847 | -6/Lower Caves | Identified exit to Factory 3855 | -6/Lower Caves | Entered Factory 3855 | -5/Factory | Evolved 2 slots: Utility x2 4285 | -5/Factory | Discovered new exit (range 12) 4289 | -5/Factory | Identified exit to Factory 4293 | -5/Factory | Entered another Factory area 4293 | -4/Factory | Evolved 2 slots: Propulsion x1, Utility x1 4376 | -4/Factory | Spotted B-86 Titan 4397 | -4/Factory | Discovered new exit (range 22) 4413 | -4/Factory | Discovered new exit (range 7) 4418 | -4/Factory | Build established: Scout 4545 | -4/Factory | Identified exit to Research 4547 | -4/Factory | Entered Research 4547 | -3/Research | Evolved 2 slots: Utility x2 4561 | -3/Research | Spotted B-86 Titan 4670 | -3/Research | Identified exit to Armory 4670 | -3/Research | Identified exit to Testing 4696 | -3/Research | Entered Testing 4719 | -3/Testing | Spotted PP-1VQJUS6C4N 4764 | -3/Testing | Found Prototype Energy Gun 4764 | -3/Testing | Identified Tachyon Dispersion Ray 4811 | -3/Testing | Found Prototype Hackware 4812 | -3/Testing | Identified Exp. Hacking Suite 4818 | -3/Testing | Spotted Striker 4877 | -3/Testing | Build established: Hacker-Scout 4909 | -3/Testing | Found Prototype Energy Cannon 4909 | -3/Testing | Identified Disintegrator 4923 | -3/Testing | Spotted PH-F0GEQW5S9S 4983 | -3/Testing | Fabricated Nuclear Pulse Array? 5057 | -3/Testing | Fabricated Nuclear Pulse Array? 5070 | -3/Testing | Spotted Striker 5072 | -3/Testing | Spotted Alpha 7 5074 | -3/Testing | Stole the SGEMP Prototype 5100 | -3/Testing | Discovered new exit (range 21) 5104 | -3/Testing | Core integrity fell below 50% 5108 | -3/Testing | Core integrity fell below 20% 5110 | -3/Testing | Identified exit to Research 5111 | -3/Testing | Entered Research 5111 | -2/Research | Evolved 2 slots: Power x1, Propulsion x1 5129 | -2/Research | Spotted B-90 Cyclops 5132 | -2/Research | Lost 10 parts (1p3n5u1w) 5134 | -2/Research | Identified exit to Quarantine 5134 | -2/Research | Identified exit to Access 5312 | -2/Research | Core integrity fell below 50% 5315 | -2/Research | Entered Quarantine 5344 | -2/Quarantine | Lost 3 parts (1p1n1u) 5390 | -2/Quarantine | Build established: Hacker-Mutant 5392 | -2/Quarantine | Met incapacitated Sigix Warrior 5392 | -2/Quarantine | Lockdown squad dispatched 5396 | -2/Quarantine | System corruption reached 10% 5419 | -2/Quarantine | Core integrity fell below 20% 5432 | -2/Quarantine | Destroyed by P-80 Master with Gamma Rifle Last Messages --------------- 05410_ U-05 Engineer lays Concrete. 05417_ Dropped SGEMP Prototype. 05418_ Machine disabled. 05418_ R-10 Processor collects Terrain Scan Processor. 05421_ R-10 Processor collects Terrain Scanner. 05424_ Impulse Thruster Array destroyed. 05424_ R-10 Processor collects Welding Torch. 05425_ R-10 Processor collects Wheel. 05426_ Phase Gun destroyed. 05428_ Slammed into P-80 Master. 05428_ Destabilizing: Short circuit. 05428_ Broken Adv. Signal Interpreter permanently disabled. 05429_ Slammed into P-80 Master. 05429_ Destabilizing: System corrupted (+1). 05430_ Slammed into P-80 Master. 05430_ Destabilizing: System interference. 05430_ Adv. Terrain Scan Processor temporarily disabled. [Achievement: 5k Club] [Achievement: 10k Club] [Achievement: Tester] Map ----- +----------------------------------------------------+ | | | | | | | | | | | | | | | | | | | | | | | | | | | | | | | ??????????????????????????######## | | ????????????????########### ! | | ????????????????# # | | ????????????????# # | | ????????????????# # """ "" | | ????????????????# """""" # """ "" | | ????????????????# """""" # """ "" | | ????###########?# """""" #? | | ????#"""""""""#?# #??? | | ????#"""""""""#?# = #??###/# | | ????#""" @p" T#####+########## | | ????#" p""" "T | | ????#" &"&" R "" | | ????#""p""" RR R | | ????#""" " T#T#### T""##### | | ????#"""""""""###??#"""""#???## | | ????#"""""""""#????#######????# | | ????###########????????????#### | | ?????####################??# | | ?????# #??# | | ?????# #??# | | ?????# #??#### | | ?????# #????# | | ?????# ###### | | ?????# """"""""" / | | ?????# """ """ ###### | | ?????# #????# | | ?????########+#+#########????###+# | | ????????????# #????? | | ????????????# ^ #???= """ | | ????????????# #??# """ | | ????????????# #??# """ | | ?#############+##### #??# """ | | ?# == # #??# """ | | ?# = == # #??# | +----------------------------------------------------+ Best States ------------- Heat Dissipation 72 Coolant Potential 80 Energy Generation 36 Energy Capacity 440 Matter Stores 300 Matter Capacity 300 Sight Range 23 Robot Scan Range 16 Terrain Scan Range 24 Terrain Scan Density 210 Jamming Range 14 Power Amplification 40 Additional Mass Support 15 Armor Coverage 150 Propulsion Shielding 66 Evasion (%) 69 Energy Filtering 30 Stasis Canceling 1 Offensive Hacking 40 Defensive Hacking 22 Item Schematics ----------------- Imp. Flight Unit | -8/Materials | Scanalyzed Adv. Weight Redist. System | -6/Factory | Scanalyzed Nuclear Pulse Array | -5/Factory | Scanalyzed Enh. Flamer | -5/Factory | Scanalyzed Lgt. Fission Core | -5/Factory | Scanalyzed Cmb. Linear Gravjet | -3/Testing | Hacked Diametric Drive | -3/Testing | Hacked Robot Schematics ------------------ None Fabricated ------------ Plasma Cannon | x2 | -7/Factory | Preloaded Nuclear Pulse Array | x2 | -3/Testing Nuclear Pulse Array | x2 | -3/Testing Alien Tech Used ----------------- None Achievements -------------- 10k Club 5k Club Close Call Dangerous Findings Everything Is Under Control False Reunion GoHome() Hunted Just What I Needed Knowing Is Half The Battle Made in Tau Ceti IV Novice Programmer Omniscient Cartographer Respectable Loadout Serviceable Loadout System Compromised Tester Troublemaker Use The Force Challenges ------------ None Game ------ Seed GuidedExplosiveRifle Manual? 0 Play Time 03:34:54 Cumulative 82.1 hours Start 2020.01.31 @ 23:34:12 End 2020.02.01 @ 04:09:36 Sessions 1 Manual Loads 0 Difficulty Rogue Special Mode None Game No. 57 Rogue 57 Adventurer 0 Explorer 0 Win Type - Total 2 Types 2/0/0/0/0/0/0 Lore% 33 Gallery% 50 Achievement% 14 Wizard Run 0 Options --------- ASCII 0 Keyboard 0 Movement Mouse Keybinds 0 Fullscreen 1 Font 18/SmallcapsGlow Map View 76x50 Tactical HUD 1 Map Filters NONE Filters NONE Steam 1 RUN: 5a096b52-9bde-47c9-a7d0-a7531bc8e119